bitfinex-derivatives/quotes_ETHF0:USTF0_20250902
["timestamp","ask_amount","ask_price","bid_price","bid_amount"]
[1756825504290,3.5941,4338.4,4337.8,0.243]
[1756825504996,3.5941,4338.4,4337.7,0.243]
[1756825505293,0.243,4338.8,4337.9,0.3848]
[1756825505489,0.3863,4338.9,4338.0,0.2305]
[1756825505797,3.2078,4339.1,4338.1,0.6278]
[1756825505993,0.3863,4339.0,4338.1,0.6278]
[1756825506190,0.3863,4339.0,4338.1,0.3848]
[1756825506497,0.58865327,4338.9,4338.1,0.3848]
[1756825506696,0.58865327,4338.8,4338.1,0.3848]
[1756825506897,0.3863,4339.0,4338.1,0.3848]
[1756825507296,0.58907773,4338.9,4338.1,0.3848]
[1756825507490,0.58907773,4338.9,4337.5,0.34396777]
[1756825507491,0.3863,4338.5,4337.6,0.3848]
[1756825507795,0.3863,4338.5,4337.7,0.3848]
[1756825508393,0.3863,4339.0,4337.8,3.5926]
[1756825508591,3.2078,4338.8,4337.9,0.3848]
[1756825508791,0.589534,4338.7,4338.0,0.3848]
[1756825508988,0.589534,4338.6,4338.0,0.3848]
[1756825509199,0.589534,4338.5,4338.0,0.3848]
[1756825509395,0.3759,4338.3,4338.0,0.6105]
[1756825509694,3.2078,4338.8,4337.8,3.2078]
[1756825509894,0.3759,4338.6,4337.8,0.243]
[1756825510093,0.3759,4338.6,4337.3,3.2078]
[1756825510094,3.2078,4338.3,4337.3,3.2078]
[1756825510295,0.58998724,4338.2,4337.3,3.2078]
[1756825510497,0.96588724,4338.1,4337.3,3.2078]
[1756825510801,0.58998724,4338.0,4337.3,3.2078]
[1756825510991,0.58998724,4338.0,4337.4,0.3675]
[1756825511893,0.96588724,4338.0,4337.4,0.3675]
[1756825512094,0.96588724,4337.9,4337.3,3.2078]
[1756825512299,0.58998724,4337.8,4337.4,0.3675]
[1756825512494,0.96588724,4337.7,4337.3,3.2078]
[1756825512691,0.58998724,4337.6,4337.4,0.3675]
[1756825512894,0.58998724,4337.5,4337.4,0.3675]
[1756825513095,0.58998724,4338.2,4337.4,0.3675]
[1756825513399,0.58998724,4338.2,4338.0,0.1556]
[1756825513595,3.2078,4339.4,4338.2,0.3675]
[1756825513896,0.59120015,4339.3,4338.6,0.3675]
[1756825514096,0.59120015,4339.2,4338.8,0.3675]
[1756825514297,0.59120015,4339.1,4339.0,0.1556]
[1756825514596,1.22343548,4340.2,4339.0,0.1556]
[1756825514802,0.59198338,4340.1,4339.0,0.1556]
[1756825515003,0.59198338,4340.0,4339.1,0.23043999]
[1756825515199,0.59198338,4339.9,4339.3,0.3675]
[1756825515402,0.59198338,4339.8,4339.5,0.3675]
[1756825515603,0.59198338,4339.7,4339.3,0.23043]
[1756825515799,0.59198338,4339.6,4339.5,0.3675]
[1756825516001,1.22343548,4340.4,4339.6,0.3675]
[1756825516206,0.59253113,4340.3,4339.8,0.3675]
[1756825516498,0.59253113,4340.2,4339.8,0.3675]
[1756825516699,0.59253113,4340.1,4340.0,0.1556]
[1756825516901,0.19393113,4340.1,4340.0,3.7309]
[1756825517102,1.59933548,4341.1,4340.1,0.2652]
[1756825517400,3.814,4345.5,4339.8,40.8]
[1756825517401,0.5282,4340.5,4339.8,40.8]
[1756825517706,0.3759,4339.9,4339.2,0.243]
[1756825517907,0.3759,4339.9,4339.0,3.473]
[1756825518200,0.3759,4339.9,4339.0,3.2078]
[1756825518599,0.3759,4339.9,4339.1,0.23043999]
[1756825518803,0.3759,4339.9,4339.0,3.2078]
[1756825518999,0.3759,4339.9,4339.1,0.243]
[1756825519199,0.1523,4340.0,4339.0,3.2078]
[1756825519400,0.3759,4339.9,4339.1,0.243]
[1756825519594,0.3759,4339.9,4339.5,3.473]
[1756825519806,1.63124731,4340.9,4339.5,3.473]
[1756825519807,0.3759,4340.8,4339.7,0.2652]
[1756825520004,3.2078,4340.8,4339.4,3.2078]
[1756825520301,0.1523,4340.0,4339.5,0.243]
[1756825520499,0.1523,4340.5,4339.6,0.243]
[1756825520500,1.37573548,4340.5,4339.6,0.243]
[1756825520694,0.3759,4339.9,4339.6,0.243]
[1756825520900,0.3759,4340.4,4339.6,0.243]
[1756825521503,1.59933548,4340.8,4340.3,0.2652]
[1756825521698,1.22343548,4340.9,4340.2,3.2078]
[1756825521998,4.43123548,4340.9,4339.6,0.2652]
[1756825522205,0.3759,4340.6,4339.5,3.2078]
[1756825522395,0.3759,4340.4,4339.6,0.243]
[1756825522998,0.3759,4340.4,4339.7,0.2652]
[1756825523195,0.3759,4340.9,4340.1,3.473]
[1756825523401,0.3759,4340.9,4340.2,0.243]
[1756825524201,3.5837,4341.4,4340.7,0.2652]
[1756825524401,3.5837,4341.4,4340.8,0.243]
[1756825524601,0.3759,4341.3,4340.6,3.2078]
[1756825524801,0.3759,4341.3,4340.7,0.243]
[1756825525109,0.3759,4341.8,4341.2,3.473]
[1756825525408,3.2078,4342.0,4341.4,0.2652]
[1756825525703,0.3759,4341.9,4341.3,0.243]
[1756825526403,0.3759,4341.9,4341.3,41.043]
[1756825526804,0.3759,4341.9,4341.4,0.243]
[1756825527005,3.736,4342.0,4341.4,0.243]
[1756825527805,0.3759,4341.9,4341.5,0.243]
[1756825528007,0.3759,4341.4,4340.3,0.2652]
[1756825528200,3.2078,4341.4,4340.2,3.2078]
[1756825528405,0.3759,4341.3,4340.2,3.4508]
[1756825528601,3.2078,4341.4,4340.2,3.4508]
[1756825528800,0.3759,4341.3,4340.2,3.4508]
[1756825529001,0.3759,4341.1,4340.2,3.4508]
[1756825529408,3.4508,4341.4,4340.2,3.4508]
[1756825529609,0.3759,4341.2,4340.2,3.4508]
[1756825529808,3.4508,4341.4,4340.2,3.4508]
[1756825530010,0.58071697,4341.3,4340.3,0.243]
[1756825530208,0.3759,4341.2,4340.4,0.243]
[1756825530605,0.3759,4341.2,4340.2,3.2078]
[1756825530606,3.4508,4341.4,4340.2,3.2078]
[1756825530909,0.1523,4340.5,4339.5,3.2078]
[1756825531104,3.2078,4340.3,4339.5,3.2078]
[1756825531306,0.1523,4340.0,4338.9,44.0078]
[1756825531510,0.3759,4339.9,4339.0,0.2652]
[1756825532112,0.3759,4339.9,4339.1,0.242]
[1756825533104,0.3759,4339.9,4338.9,44.0078]
[1756825533304,3.2078,4339.7,4338.9,3.2078]
[1756825533601,0.3759,4338.9,4338.0,3.2078]
[1756825533803,0.3759,4338.9,4338.1,0.242]
[1756825534006,0.3759,4338.9,4338.0,3.2078]
[1756825534007,0.1523,4338.5,4338.0,3.2078]
[1756825534213,0.3759,4338.4,4338.0,3.2078]
[1756825534413,0.1523,4338.5,4338.0,3.2078]
[1756825534706,3.2078,4338.3,4337.3,3.2078]
[1756825535111,0.3759,4338.2,4337.3,3.2078]
[1756825535306,3.2078,4338.3,4337.3,3.2078]
[1756825535506,0.3759,4338.2,4337.3,3.2078]
[1756825535714,0.5282,4338.0,4337.3,3.2078]
[1756825535911,0.1523,4338.0,4337.3,3.2078]
[1756825536509,0.3759,4337.4,4337.3,3.2078]
[1756825536710,0.3759,4336.9,4336.7,3.2078]
[1756825536907,0.1523,4336.5,4336.2,3.2078]
[1756825537515,0.3759,4336.4,4336.2,3.2078]
[1756825537813,0.1523,4336.5,4336.2,3.2078]
[1756825538009,4.3759,4336.4,4336.2,3.2078]
[1756825538208,0.3759,4336.2,4335.0,3.5753]
[1756825538409,0.3759,4335.7,4335.0,3.2078]
[1756825538814,0.18780074,4336.8,4335.0,3.2078]
[1756825538815,3.5837,4336.3,4335.1,0.3675]
[1756825539016,0.242,4336.2,4335.1,0.3675]
[1756825539313,0.3963,4336.1,4335.1,0.3675]
[1756825539613,0.243,4336.0,4335.1,0.3874]
[1756825539810,3.2078,4335.8,4335.1,0.3874]
[1756825540012,0.3963,4335.7,4335.1,0.3874]
[1756825540609,0.3963,4336.2,4335.1,0.3874]
[1756825540812,0.3963,4336.2,4335.3,0.3874]
[1756825541211,3.4508,4336.3,4335.3,0.3874]
[1756825541514,3.4508,4336.3,4335.2,0.3874]
[1756825541515,3.2078,4335.8,4335.2,0.3874]
[1756825542913,0.3963,4336.0,4335.2,0.3874]
[1756825543107,3.2078,4335.8,4335.2,0.3874]
[1756825543516,0.3963,4335.7,4334.7,0.3874]
[1756825543714,3.2078,4335.8,4334.8,0.3874]
[1756825544010,3.4508,4336.3,4335.3,3.2078]
[1756825544214,3.2078,4336.3,4335.5,0.1454]
[1756825544411,3.2078,4336.3,4335.6,0.3874]
[1756825544606,3.2078,4336.3,4335.6,0.6304]
[1756825544815,3.2078,4336.3,4335.7,0.3874]
[1756825545314,3.2078,4337.7,4336.1,0.3874]
[1756825545519,0.243,4337.6,4336.5,0.1454]
[1756825545813,0.243,4337.6,4336.6,0.3874]
[1756825546018,3.2078,4337.7,4336.6,0.3874]
[1756825546218,3.2078,4338.4,4337.1,0.41499]
[1756825546415,0.3963,4338.3,4337.2,0.6304]
[1756825546611,0.3963,4338.3,4337.3,0.3874]
[1756825546807,3.2078,4338.4,4337.5,0.1454]
[1756825547012,3.2078,4338.4,4337.6,0.3874]
[1756825547212,3.2078,4338.4,4337.6,0.80233]
[1756825547417,3.2078,4338.4,4337.8,0.3874]
[1756825547621,3.2078,4338.4,4337.3,3.2078]
[1756825547821,0.3963,4337.8,4337.2,0.3874]
[1756825548117,0.3963,4337.8,4336.7,0.80242]
[1756825548312,3.2078,4337.9,4336.8,0.3874]
[1756825548719,3.4508,4338.2,4337.0,0.1454]
[1756825548920,3.4508,4338.2,4336.7,0.3874]
[1756825549114,3.2078,4337.2,4336.7,0.3874]
[1756825549313,0.3963,4337.2,4336.1,3.2078]
[1756825549521,3.2078,4336.8,4336.1,3.2078]
[1756825550124,0.3963,4336.7,4335.7,0.3874]
[1756825551225,0.6393,4336.7,4335.7,0.3874]
[1756825552324,3.6041,4336.3,4335.7,0.3874]
[1756825552624,0.3963,4336.3,4335.7,0.3874]
[1756825552826,0.243,4337.0,4335.8,3.5952]
[1756825553024,0.3963,4337.6,4336.9,3.2078]
[1756825553334,0.3963,4337.6,4337.0,0.3874]
[1756825553530,3.2078,4337.3,4336.4,3.2078]
[1756825553725,3.2078,4336.6,4335.9,0.3874]
[1756825553919,3.2078,4336.1,4335.4,0.3874]
[1756825554122,0.3963,4336.6,4335.4,0.3874]
[1756825554123,0.3963,4336.5,4335.4,0.3874]
[1756825554330,3.2078,4336.1,4335.4,0.3874]
[1756825554927,0.3963,4336.5,4335.5,0.3874]
[1756825555226,0.3963,4336.5,4335.6,0.3874]
[1756825555431,0.6393,4336.5,4335.6,0.3874]
[1756825555822,0.3963,4336.0,4335.2,30.683]
[1756825556133,0.3963,4336.0,4335.1,0.3874]
[1756825557335,0.243,4336.2,4334.8,3.4508]
[1756825557336,3.2078,4335.6,4334.8,3.2078]
[1756825557625,0.3963,4335.4,4334.2,3.2078]
[1756825558330,3.2078,4334.3,4333.2,3.2078]
[1756825558630,0.1523,4335.0,4331.2,3.2078]
[1756825558631,3.2078,4333.3,4331.2,3.2078]
[1756825558829,3.2078,4331.6,4331.0,0.1454]
[1756825559028,3.2078,4331.6,4330.8,0.3874]
[1756825559328,3.2078,4330.9,4328.0,0.1454]
[1756825559627,3.2078,4330.5,4330.1,0.3874]
[1756825559825,3.2078,4330.5,4330.0,0.1454]
[1756825560022,3.2078,4330.5,4329.6,0.3874]
[1756825560230,3.2078,4329.7,4328.0,0.3874]
[1756825560428,3.2078,4328.9,4328.0,0.3874]
[1756825560632,3.2078,4329.1,4328.4,0.1454]
[1756825560824,3.2078,4328.5,4327.6,3.2078]
[1756825561021,3.2078,4327.8,4326.8,3.2078]
[1756825561222,3.4538,4327.9,4326.9,0.3874]
[1756825561427,1.22343548,4330.2,4326.4,0.41601]
[1756825561428,3.2078,4327.1,4326.4,0.41601]
[1756825561628,0.247,4327.5,4326.7,0.3874]
[1756825561827,0.129,4327.4,4326.7,0.3874]
[1756825562029,3.2078,4326.8,4326.7,0.3874]
[1756825562228,3.2078,4326.8,4323.4,200.69953]
[1756825562229,3.4568,4326.8,4324.4,0.3874]
[1756825562430,3.2078,4325.2,4324.2,3.2078]
[1756825562621,0.25,4325.1,4324.2,3.2078]
[1756825562822,0.25,4325.1,4320.0,0.1454]
[1756825562823,3.2078,4324.7,4321.9,3.2078]
[1756825563027,3.2078,4322.0,4320.1,0.246]
[1756825563221,1.46727269,4324.6,4320.8,0.1454]
[1756825563222,3.2078,4321.9,4320.8,0.1454]
[1756825563434,3.2078,4321.6,4320.8,0.1454]
[1756825563727,3.2078,4322.3,4320.8,0.1454]
[1756825563928,3.7625,4324.0,4322.1,3.2078]
[1756825564128,0.3963,4324.7,4323.5,3.2078]
[1756825564330,0.1584,4326.4,4323.3,3.2078]
[1756825564331,3.2078,4324.2,4323.3,3.2078]
[1756825564533,3.2078,4324.8,4323.8,3.2078]
[1756825564730,3.2078,4324.8,4322.4,0.04025881]
[1756825564731,0.3963,4323.9,4322.4,0.04025881]
[1756825564930,3.2078,4322.5,4322.4,0.04025881]
[1756825565135,3.2078,4322.5,4322.4,0.42765881]
[1756825565433,3.2078,4324.2,4322.4,0.04025881]
[1756825565637,3.2078,4324.2,4322.8,3.2078]
[1756825565823,0.3963,4324.1,4322.8,3.2078]
[1756825566027,3.2078,4324.2,4322.9,40.8]
[1756825566232,3.2078,4324.2,4322.8,3.2078]
[1756825566233,3.2078,4324.7,4322.8,3.2078]
[1756825566431,3.6041,4322.9,4322.4,0.04025881]
[1756825566737,3.3662,4323.6,4322.4,40.84025881]
[1756825566940,3.2078,4322.9,4322.4,40.84025881]
[1756825567138,3.6041,4322.9,4322.4,40.84025881]
[1756825567336,0.3963,4322.9,4322.4,40.84025881]
[1756825567535,3.2078,4322.9,4322.4,40.84025881]
[1756825567735,0.1584,4322.7,4322.4,40.84025881]
[1756825567927,0.1584,4323.6,4322.5,4.0]
[1756825568134,3.2078,4324.1,4322.9,3.2078]
[1756825568330,3.2078,4324.7,4323.0,3.2078]
[1756825568633,0.3963,4324.6,4323.4,40.8]
[1756825568833,3.2078,4324.7,4323.4,40.8]
[1756825569033,0.5547,4325.4,4324.0,3.2078]
[1756825569227,3.2078,4325.0,4324.0,0.0433]
[1756825569433,0.5547,4325.4,4323.7,0.0433]
[1756825569631,0.5547,4325.4,4323.8,0.258]
[1756825569632,3.2078,4325.0,4323.8,0.258]
[1756825569839,3.2078,4325.0,4323.9,0.258]
[1756825570240,0.1584,4325.4,4324.1,0.0433]
[1756825570440,3.2078,4325.5,4324.9,3.2078]
[1756825570640,3.2078,4326.0,4325.0,0.258]
[1756825570940,0.4316,4326.6,4325.4,3.2511]
[1756825571140,0.41597,4326.9,4326.2,0.0433]
[1756825571338,0.41597,4326.9,4326.3,0.258]
[1756825571541,0.41595,4327.1,4326.6,3.2078]
[1756825571837,0.41591,4327.5,4326.7,0.258]
[1756825572139,0.41601,4326.5,4326.2,0.258]
[1756825572328,0.4316,4326.4,4325.7,0.0433]
[1756825572534,0.41608,4325.7,4325.4,3.2078]
[1756825572732,0.4161,4325.5,4324.9,3.2078]
[1756825573038,0.41609,4325.6,4325.0,0.3013]
[1756825573237,0.41609,4325.6,4325.5,3.2078]
[1756825573435,0.1793,4326.4,4325.5,3.2078]
[1756825573635,0.4316,4325.7,4324.2,30.503]
[1756825573840,0.41618,4324.7,4324.3,0.258]
[1756825574143,0.4316,4325.3,4324.6,3.2078]
[1756825574338,0.84772,4325.3,4325.2,3.2078]
[1756825574535,0.41616,4324.9,4324.8,0.258]
[1756825574838,0.4316,4324.7,4324.3,3.2078]
[1756825575039,0.1793,4324.0,4323.4,3.2078]
[1756825575237,0.4316,4323.9,4323.5,0.258]
[1756825575550,3.2078,4324.5,4323.5,0.258]
[1756825575745,0.41623,4324.2,4323.5,0.258]
[1756825575941,0.4316,4324.6,4324.1,3.2078]
[1756825576142,0.4316,4323.6,4322.9,3.2078]
[1756825576340,0.41634,4323.1,4322.9,3.2078]
[1756825576840,13.61349,4324.3,4322.9,3.2078]
[1756825576841,0.41628,4323.6,4322.9,3.2078]
[1756825577043,3.6394,4324.3,4323.0,0.258]
[1756825577336,0.41629,4323.6,4323.1,0.258]
[1756825577533,3.6394,4324.3,4323.2,0.3013]
[1756825577739,0.41633,4323.1,4323.0,40.8]
[1756825577935,0.4316,4324.3,4323.0,41.058]
[1756825578134,0.41633,4323.2,4323.0,41.3593]
[1756825578340,0.4316,4324.3,4323.0,41.3593]
[1756825578536,0.4316,4324.3,4323.0,41.1013]
[1756825578840,0.4316,4323.9,4323.0,40.8]
[1756825579042,0.41632,4323.2,4323.1,0.258]
[1756825579236,0.41632,4323.2,4323.0,40.8]
[1756825579435,0.4316,4323.1,4323.0,40.8]
[1756825579638,0.41642,4322.2,4322.0,3.2078]
[1756825579937,0.41638,4322.6,4322.1,0.258]
[1756825580241,0.4316,4323.0,4322.2,41.058]
[1756825580541,0.4316,4322.8,4322.0,3.2078]
[1756825580739,0.4316,4322.1,4322.0,3.2078]
[1756825580943,0.41647,4321.7,4321.5,3.2078]
[1756825581145,0.4316,4322.1,4320.9,0.4165]
[1756825581146,3.2078,4321.6,4320.9,0.4165]
[1756825581437,3.2078,4321.2,4320.8,0.5831]
[1756825581643,0.41654,4321.0,4320.8,0.1666]
[1756825581835,0.41653,4321.1,4320.8,0.5831]
[1756825582032,3.2078,4321.2,4320.2,0.4165]
[1756825582343,3.2078,4320.9,4320.2,0.4165]
[1756825582534,1.04103,4322.3,4320.0,0.2956]
[1756825582535,3.2078,4321.4,4320.9,0.4165]
[1756825582736,3.2078,4321.4,4321.1,0.4165]
[1756825583136,3.2078,4321.4,4321.0,0.258]
[1756825583335,3.2078,4322.7,4321.2,0.4165]
[1756825583636,3.2078,4322.7,4320.2,1.04151]
[1756825583637,0.41654,4321.0,4319.5,33.7358]
[1756825583842,0.41651,4321.2,4320.1,3.6243]
[1756825584146,3.2078,4322.1,4320.8,0.1666]
[1756825584344,3.2078,4322.1,4321.0,0.4165]
[1756825584847,3.2078,4321.5,4320.9,3.2078]
[1756825585040,3.2078,4321.5,4321.2,0.4165]
[1756825585243,3.2078,4321.5,4320.8,0.5831]
[1756825585448,0.41653,4321.1,4320.9,0.259]
[1756825585639,3.2078,4321.0,4320.9,0.6755]
[1756825586131,3.2078,4321.5,4320.9,41.4755]
[1756825586333,3.2078,4321.5,4320.9,41.2165]
[1756825586642,3.2078,4321.5,4321.1,0.4165]
[1756825586947,3.2078,4322.1,4321.4,0.4165]
[1756825587137,3.2078,4322.1,4321.5,0.259]
[1756825587344,3.2078,4322.1,4321.7,0.4165]
[1756825587641,3.2078,4322.1,4321.8,0.259]
[1756825587844,3.2078,4322.1,4321.6,0.1666]
[1756825588040,0.41644,4322.0,4321.7,0.259]
[1756825588238,3.2078,4322.1,4320.8,3.3744]
[1756825588239,3.2078,4322.1,4320.8,0.5831]
[1756825588446,3.2078,4322.1,4320.7,0.4165]
[1756825588637,0.41649,4321.5,4321.0,0.259]
[1756825588836,3.2078,4322.1,4321.1,0.4165]
[1756825589341,3.2078,4322.1,4321.2,3.2078]
[1756825589536,3.62423,4322.1,4321.3,0.4165]
[1756825589739,0.41646,4321.8,4321.4,0.258]
[1756825589945,3.2078,4322.1,4321.5,0.41648]
[1756825590145,3.2078,4322.1,4321.6,0.258]
[1756825590340,3.2078,4322.1,4321.2,3.2078]
[1756825590649,3.2078,4322.1,4321.3,0.6745]
[1756825591248,3.2078,4322.1,4321.4,0.6745]
[1756825591938,3.2078,4322.1,4321.5,0.258]
[1756825592140,3.2078,4322.1,4321.6,0.4165]
[1756825592339,3.2078,4322.1,4321.7,0.41646]
[1756825592645,0.41643,4322.0,4321.8,0.4165]
[1756825592948,3.2078,4322.1,4321.9,0.4165]
[1756825593148,3.62423,4322.1,4322.0,0.258]
[1756825593344,1.04109,4322.0,4321.1,0.4165]
[1756825593645,1.04109,4322.0,4321.3,3.2078]
[1756825593943,0.41653,4321.1,4320.9,40.8]
[1756825594146,0.41661,4320.3,4320.1,0.4165]
[1756825594345,3.2078,4320.2,4319.7,0.258]
[1756825594644,0.41667,4319.6,4319.5,40.8]
[1756825594948,0.41664,4319.9,4319.5,40.8]
[1756825595242,0.41667,4319.6,4319.5,40.8]
[1756825595448,0.4316,4319.8,4318.7,0.4165]
[1756825595648,0.41674,4318.9,4318.8,0.258]
[1756825595842,0.41673,4319.0,4318.8,41.058]
[1756825596043,0.4167,4319.2,4318.8,41.058]
[1756825596242,0.4167,4319.3,4318.9,0.258]
[1756825596549,3.2078,4319.3,4318.8,40.8]
[1756825596849,3.2078,4319.3,4318.6,3.2078]
[1756825596850,0.41672,4319.0,4318.9,0.258]
[1756825597045,3.2078,4319.3,4318.9,0.258]
[1756825597245,0.41667,4319.6,4319.0,0.4165]
[1756825597446,3.2078,4320.7,4319.2,0.4165]
[1756825597651,0.4316,4320.8,4319.3,0.258]
[1756825597846,3.2078,4320.0,4319.4,0.258]
[1756825598054,3.2078,4320.1,4319.5,0.4165]
[1756825598248,3.2078,4320.8,4319.4,0.41668]
[1756825598446,3.2078,4320.8,4319.0,3.2078]
[1756825598751,3.2078,4320.8,4318.7,40.8]
[1756825598752,0.41673,4319.0,4318.7,40.8]
[1756825598950,0.41667,4319.6,4318.8,0.4165]
[1756825599147,3.2078,4320.4,4319.1,3.2078]
[1756825599349,3.2078,4320.4,4318.8,0.4165]
[1756825599350,0.41668,4319.5,4318.7,41.2281]
[1756825599550,0.4389,4320.3,4318.7,41.2281]
[1756825599551,0.41663,4320.0,4318.8,0.26]
[1756825599747,0.4389,4320.3,4318.9,0.67673]
[1756825599950,0.8555,4320.3,4319.0,1.10482]
[1756825600246,3.2078,4319.8,4319.1,0.6881]
[1756825600446,3.2078,4319.8,4319.1,0.4281]
[1756825600650,0.41667,4319.6,4318.7,41.2281]
[1756825600947,3.62445,4319.8,4318.8,0.259]
[1756825601146,0.41666,4319.7,4318.8,0.259]
[1756825601350,3.2078,4319.3,4319.0,0.4281]
[1756825601546,3.2078,4319.9,4319.3,0.41669]
[1756825601847,3.2078,4320.8,4319.8,0.4281]
[1756825602048,3.2078,4321.4,4320.5,0.4281]
[1756825602248,3.2078,4322.0,4320.6,0.259]
[1756825602452,3.2078,4322.0,4321.3,3.2078]
[1756825602749,3.2078,4322.2,4321.5,0.4281]
[1756825602948,3.2078,4322.8,4321.8,3.2078]
[1756825603256,3.2078,4323.3,4322.7,0.4281]
[1756825603447,3.2078,4323.3,4322.8,0.259]
[1756825603753,3.2078,4324.1,4323.3,0.4281]
[1756825603952,3.2078,4324.1,4323.4,0.259]
[1756825604148,3.2078,4324.1,4323.5,3.2078]
[1756825604354,0.41625,4324.0,4323.5,3.2078]
[1756825604651,3.2078,4323.6,4323.1,0.259]
[1756825605151,0.41624,4324.0,4323.2,0.4281]
[1756825605349,0.41626,4323.9,4323.3,0.259]
[1756825605742,0.4389,4324.1,4323.3,0.259]
[1756825605947,0.41625,4324.0,4323.2,0.4281]
[1756825606149,0.4389,4324.1,4323.3,0.245]
[1756825606353,3.6467,4324.9,4323.7,3.2078]
[1756825606548,0.56998465,4324.8,4323.8,0.259]
[1756825606744,0.57002147,4324.7,4323.8,0.259]
[1756825606955,0.41617,4324.7,4323.8,0.259]
[1756825607156,3.2078,4324.9,4323.9,0.4281]
[1756825607454,3.2078,4324.9,4323.9,0.6004]
[1756825607656,3.2078,4324.9,4324.0,0.67524]
[1756825607858,3.2078,4324.9,4324.0,0.259]
[1756825608049,3.2078,4324.9,4324.1,0.259]
[1756825608354,0.4389,4324.7,4323.1,3.2078]
[1756825608655,3.2078,4324.5,4323.2,0.6004]
[1756825608851,3.2078,4324.5,4323.2,0.1723]
[1756825609055,3.2078,4324.5,4323.9,0.4281]
[1756825609253,3.2078,4324.5,4323.3,0.23128]
[1756825609254,3.2078,4324.5,4324.0,0.26]
[1756825609548,3.2078,4324.5,4323.9,3.2078]
[1756825609749,3.2078,4324.5,4324.1,0.4281]
[1756825609949,3.2078,4324.5,4323.9,3.3801]
[1756825609950,0.4389,4324.4,4323.5,30.543]
[1756825610151,0.41622,4324.3,4323.6,0.26]
[1756825610446,0.4389,4324.4,4323.6,0.26]
[1756825610652,0.41625,4323.9,4323.4,0.26]
[1756825610858,1.47954,4323.9,4322.5,0.4281]
[1756825611060,3.2078,4323.5,4322.9,0.26]
[1756825611255,0.4389,4323.4,4321.9,30.542]
[1756825611553,0.26,4323.8,4321.7,3.2078]
[1756825611554,0.41644,4322.0,4321.7,3.2078]
[1756825611755,3.6467,4322.0,4321.6,0.26]
[1756825611955,3.2078,4322.0,4321.6,0.6881]
[1756825612254,3.2078,4322.0,4321.7,0.4281]
[1756825612553,3.2078,4322.6,4321.7,0.4281]
[1756825612759,3.2078,4323.1,4322.1,0.41642]
[1756825612962,3.2078,4323.1,4322.3,0.4164]
[1756825613153,3.2078,4323.1,4321.6,3.2078]
[1756825613349,0.4164,4322.4,4321.5,0.4281]
[1756825613548,0.4164,4322.4,4321.4,0.261]
[1756825613855,3.2078,4322.5,4321.4,1.10559]
[1756825614056,3.2078,4322.0,4321.4,0.4281]
[1756825614353,3.2078,4323.1,4321.8,3.2078]
[1756825614558,3.2078,4323.1,4322.1,0.41642]
[1756825614759,3.2078,4322.6,4321.9,0.84454]
[1756825614956,3.6467,4323.3,4322.1,0.4281]
[1756825615258,3.2078,4322.8,4322.7,0.4281]
[1756825615558,3.2078,4322.8,4322.0,0.4281]
[1756825616255,3.2078,4323.3,4322.0,0.6891]
[1756825616458,3.2078,4323.4,4322.1,0.6891]
[1756825616759,3.2078,4323.4,4322.4,0.41639]
[1756825617152,3.2078,4323.4,4322.4,3.2078]
[1756825617349,3.2078,4322.9,4322.1,0.261]
[1756825617554,3.2078,4322.9,4322.2,40.8]
[1756825617755,3.2078,4322.9,4322.2,41.2281]
[1756825617954,3.2078,4322.9,4322.2,41.64451]
[1756825618154,3.2078,4322.9,4322.3,0.4164]
[1756825618355,0.4389,4323.3,4322.4,0.261]
[1756825618558,3.2078,4323.4,4322.4,0.6891]
[1756825618758,3.2078,4323.4,4322.4,0.261]
[1756825618957,3.2078,4323.4,4323.0,0.41633]
[1756825619153,3.2078,4323.4,4323.2,0.4281]
[1756825619659,3.2078,4323.9,4323.2,0.4281]
[1756825619854,3.2078,4323.9,4323.3,0.6891]
[1756825620159,3.2078,4324.5,4323.3,0.6891]
[1756825620355,3.2078,4325.6,4324.6,0.41618]
[1756825620554,3.2078,4325.6,4324.0,1.46871]
[1756825620555,3.2078,4325.6,4324.7,0.6891]
[1756825620754,3.2078,4325.6,4325.0,0.41614]
[1756825620955,3.2078,4325.6,4325.1,41.2281]
[1756825621253,3.4195,4325.6,4325.1,40.8]
[1756825621458,3.2078,4325.6,4325.1,40.8]
[1756825622055,0.41611,4325.4,4325.2,0.6891]
[1756825622255,0.41611,4325.4,4325.2,0.4281]
[1756825622758,3.2078,4325.6,4325.2,0.4281]
[1756825623067,3.2078,4325.6,4325.1,41.062]
[1756825623361,3.2078,4325.6,4324.4,0.261]
[1756825623362,0.41617,4324.8,4324.4,0.261]
[1756825623565,0.41618,4324.7,4324.4,0.261]
[1756825623861,3.2078,4325.1,4324.6,0.1723]
[1756825624059,3.2078,4325.1,4324.5,40.8]
[1756825624255,0.2007,4325.0,4324.6,0.261]
[1756825624454,0.41616,4324.9,4324.5,40.8]
[1756825624656,0.41617,4324.8,4324.6,0.261]
[1756825624857,3.62394,4325.1,4324.6,0.261]
[1756825625256,3.2078,4325.1,4324.6,0.261]
[1756825625460,0.41618,4324.7,4324.5,40.8]
[1756825625656,3.62394,4325.1,4324.5,40.8]
[1756825625858,3.2078,4325.1,4324.6,0.4333]
[1756825626058,3.2078,4325.1,4324.7,0.6891]